Workbook

Sheet СНТсмета
A1: СМЕТА доходов и расходов
A2: СНТ «Воейково» на 2017г.
A4: Утверждено Общим собранием от _________________2017 года
A5: Председатель Правления СНТ «Воейково"
A6: ____________________________________________________________________ | D6: Круглов А.Н
A7: подпись | D7: Ф.И.О.
C8: Количество членов СНТ чел | D8: 452
C9: Количество индивидуалов чел | D9: 2
C10: Количество соток в СНТ (без ЗОП) | D10: 3097
C11: Количество участков подключенных к ЛЭП | D11: 353
C12: Количество участков подключенных к летнему водопроводу | D12: 290
C13: Количество участков подключенных к постоянному водопроводу | D13: 53
C14: Вступительный взнос \руб | D14: 500
C15: Членский взнос \ руб | D15: 2600
C16: Взнос за подключение к ЛЭП | D16: 50000
C17: Взнос за подключение к летнему водопроводу | D17: 20000
C18: Взнос за подключение к постоянному водопроводу | D18: 50000
C19: Штраф за несанкционированное подключение к электросети | D19: 30000
C20: Повторное подключение к сети ЛЭП | D20: 30000
C21: Штраф за несанкционированное подключение к водопроводу | D21: 30000
C22: Целевой взнос на реконструкцию и обслуживание ЛЭП\руб с участка,подключенного к ЛЭП | D22: 700
C23: Целевой взнос на благоустройство с 1 сотки\руб | D23: 300
C24: Целевой взнос на обслуживание водопровода\руб с участка подключенного к водопроводу после счетчика СНТ | D24: 600 | E24: увеличилась стоимость материалов, замена счетчиков
C25: Целевой взнос на оплату потребления воды\руб - летний водопровод | D25: 0.022*4*77,54 =6,83 р. | E25: С кв. м. Либо установка счетчика
C26: Целевой взнос на оплату потребления воды\руб - постоянный водопровод | D26: 77,54 руб. куб.м. | E26: До 01.09.16 надо было установить счетчик
C27: Постановлением Правительства Л.О. от 30.05.2014г. № 201 норматив потребления ХВС для "Дома без ванн, с водопроводом, газоснабжением, без централизованной канализации - 5, 23 м. куб. на человека в месяц. | D27: Без счетчика, 5,23 х77,54=405,53 руб.в месяц на чел.
C28: Целевой взнос на пожарную безопасность с члена СНТ \руб | D28: 100
C29: Целевой взнос на вывоз мусора с уч-ка без построек или летним домом\руб | D29: 500 | E29: Связано с увеличением тарифов "Сметсберг" и увеличением объема вывозимого ТБО
C30: Целевой взнос на вывоз мусора с уч-ка с зимним домом \руб | D30: 1500
C31: Земельный налог с сотки оформленного участка | D31: 30
C32: Земельный налог с сотки неоформленного участка | D32: 122+30=152
C33: Взнос за неучастие в общественных работах | D33: 500
C36: ДОХОДЫ | D36: СМЕТА Сумма всего
A39: 1 | C39: Членские и вступительные взносы | D39: =D40+D41+D42 -> 1181900
B40: 1.1. | C40: Вступительные взносы | D40: 1500
B41: 1.2. | C41: Членские взносы | D41: =D8*D15 -> 1175200
B42: 1.3 | C42: Индивидуальные договоры | D42: =D9*D15 -> 5200
A44: 2 | C44: Целевые поступления по конкретным программам | D44: =D45+D46+D47+D51+D52+D53 -> 1751200
B45: 2.1. | C45: Благоустройство | D45: =D23*D10 -> 929100
B46: 2.2. | C46: Реконструкция линий электропередач , обслуживание ЛЭП | D46: =D22*D11 -> 247100
B47: 2.3. | C47: Водоснабжение (обслуживание и реконструкция) - всего | D47: =SUM(D48:D50) -> 205800
B48: в т.ч. | C48: Строительство и обслуживание водопровода | D48: 0
C49: Летнее водоснабжение | D49: =D12*D24 -> 174000
C50: Постоянное водоснабжение | D50: =D13*D24 -> 31800
B51: 2.4. | C51: Пожарная безопасность | D51: 45200
B52: 2.5. | C52: Вывоз мусора | D52: 315000 | F52: 450х500+60х1500
B53: 2.6. | C53: Счетчики контрольные | D53: 9000
C55: Оплата потребленной воды | D55: 1163100
A56: 3 | C56: Оплата за эл. энергию | D56: 1200000
A58: 4 | C58: Земельный налог | D58: 148400
A60: 5 | C60: Внереализационные доходы (пени) | D60: 0
A61: ВСЕГО поступлений | D61: =+D39+D44+D56+D58+D55 -> 5444600
C66: РАСХОДЫ | D66: смета
A67: 1 | C67: Административно-управленческие расходы. | D67: =SUM(D68:D80) -> 1181900 | E67: =D39-D67 -> 0
B68: 1.1. | C68: Зарплата с начислениями | D68: 897000 | E68: Председатель, зам. Председателя, кассир, бухгалтер
B69: 1.2. | C69: Расходы на командировки и конференции | D69: 0
B70: 1.3. | C70: Транспортные расходы | D70: 0
B71: 1.4. | C71: Расходы на проведение аудита | D71: 0
B72: 1.5. | C72: Почтовые расходы | D72: 7000
B73: 1.6. | C73: Юридические консультации, судебные споры | D73: 150000
B74: 1.7. | C74: Аренда помещений | D74: 0
B75: 1.8. | C75: Услуги связи и интернета | D75: 15000
B76: 1.9. | C76: Канцелярские и хозяйственные расходы | D76: 7000
B77: 1.10. | C77: Представительские расходы | D77: 0
B78: 1.11. | C78: Содержание сайта СНТ | D78: 900
B79: 1.12. | C79: Услуги банка | D79: 30000
B80: 1.13. | C80: Прочие(непредвиденные) расходы | D80: 75000 | E80: электричество, вода, зем. налог
C83: Статьи расходов по целевым программам
A85: 2 | C85: Расходы по программе "Благоустройство" | D85: 929100 | E85: =D45-D85 -> 0
C86: Ремонт Окружной дороги в СНТ с устройством дренажа. | D86: 179100
C87: Проведение мелиорационных работ по ул. Лесная | D87: 0
B88: 2.1. | C88: транспортные расходы | D88: 50000
B89: 2.2. | C89: контрагентские услуги, материалы и прочие расходы | D89: 700000
A91: 3 | C91: Обслуживание водопровода | D91: 205800
B92: 3.1. | C92: Зарплата с начислениями | D92: 117300 | E92: =D47-D91 -> 0
B93: 3.2. | C93: контрагентские услуги, материалы и прочие расходы | D93: 88500
A95: 4 | C95: Вывоз мусора (экология) | D95: 315000 | E95: =D52-D95 -> 0
B96: 4.1. | C96: Вывоз мусора. Оплата по договору | D96: 300000
B97: 4.2. | C97: Уборка территории и вывоз мусора (субботник и т.д.) | D97: 15000
A99: 5 | C99: Пожарная безопасность | D99: 45200 | E99: =D51-D99 -> 0
B100: 5.1. | C100: Таблички на улицы | D100: 20000
C101: Ограждение пожарных водоёмов | D101: 25200
A103: 6 | C103: ЛЭП - обслуживание и реконструкция | D103: =D46 -> 247100
B104: 6.1. | C104: Зарплата с начислениями | D104: 0
B105: 6.2. | C105: транспортные , контрагентские услуги и материалы | D105: =D103-D104 -> 247100 | E105: =D46-D105 -> 0
A107: 7 | C107: Установка контрольных счетчиков | D107: 9000 | E107: =D107-D53 -> 0
A111: ИТОГО по целевым программам | D111: =D85+D91+D95+D99+D103+D107 -> 1751200
A113: 8 | C113: Оплата за электроэнергию (текущее потребление) | D113: =D56 -> 1200000 | E113: =D56-D113 -> 0
A114: 9 | C114: Оплата потребленной воды | D114: 1163100 | E114: 0
A115: 10 | C115: Оплата земельного налога | D115: 148400 | E115: =D58-D115 -> 0
B116: 7.3.
A117: ВСЕГО расходов | D117: =SUM(D113:D115,D111,D67) -> 5444600 | E117: =D61-D117 -> 0
